Cogmind - Beta 13 @@@ ROGUE MODE // 2024.07.02 @ 14:47:44 Player: annull Result: Destroyed by G-34 Mercenary with Small Laser Performance ------------- Evolutions (0) 0 Regions Visited (1) 200 Robots Destroyed (3) 15 Value Destroyed (102) 102 Prototype IDs (0) 0 Alien Tech Used (0) 0 Bonus (0) 0 TOTAL SCORE: 317 Bonus ------- None Cogmind --------- Core Integrity 0/250 Matter 181/300 Energy 100/100 System Corruption 0% Temperature Cool (34) Movement Rolling (80) Location -10/Materials Parts ------- > --- POWER (1) -------- (None) > --- PROPULSION (2) --- Wheel > --- UTILITY (2) ------ Small Storage Unit Sensor Array > --- WEAPON (2) ------- Light Assault Rifle > --- INVENTORY (8) ---- Ion Engine Light Treads Light Treads Compact Wheel Huge Storage Unit ECM Suite Light Assault Rifle Peak State ------------ > --- POWER ------------ Ion Engine > --- PROPULSION ------- Aluminum Leg Aluminum Leg > --- UTILITY ---------- Small Storage Unit Structural Scanner > --- WEAPON ----------- Assault Rifle Light Assault Rifle > --- INVENTORY -------- Ion Engine Light Treads Light Treads Wheel Compact Wheel Huge Storage Unit Light Assault Rifle [Rating: 7] Favorites ----------- Power Ion Engine Engine Ion Engine Propulsion Aluminum Leg Leg Aluminum Leg Wheel Wheel Utility Small Storage Unit Device Structural Scanner Storage Small Storage Unit Weapon Assault Rifle Ballistic Gun Assault Rifle Build | -11 -10 ------- Run | Yrd Mat Slots Evolved . | . . Power . | . . Propulsion . | . . Utility . | . . Weapon . | . . Parts Attached 11 | 5 6 Power 1 | 1 . Engine 1 | 1 . Core . | . . Reactor . | . . Propulsion 3 | 2 1 Treads . | . . Leg 2 | 2 . Wheel 1 | . 1 Hover . | . . Flight . | . . Utility 3 | 1 2 Device 2 | . 2 Storage 1 | 1 . Processor . | . . Hackware . | . . Protection . | . . Artifact . | . . Weapon 4 | 1 3 Energy Gun . | . . Energy Cannon . | . . Ballistic Gun 4 | 1 3 Ballistic Cannon . | . . Launcher . | . . Special Weapon . | . . Impact Weapon . | . . Slashing Weapon . | . . Piercing Weapon . | . . Special Melee Weapon . | . . Unidentified Prototypes . | . . Parts Lost 4 | . 4 Power 1 | . 1 Propulsion 2 | . 2 Utility . | . . Weapon 1 | . 1 Highest Loss Streak 4 | . 4 To Critical Strikes . | . . Average Slot Usage (%) 90 | . 90 Engine 11 | . 11 Leg 23 | . 23 Wheel 3 | . 3 Device 9 | . 9 Storage 14 | . 14 Ballistic Gun 26 | . 26 Naked Turns . | . . Heaviest Build 14 | 12 14 Greatest Support 20 | 20 20 Greatest Overweight (x) 1 | 1 1 Average Overweight (x) . | . . Largest Inventory Capacity 8 | 8 8 Average Capacity 7 | 6 8 Most Carried 8 | 7 8 Average Carried 6 | 4 6 Final Capacity 8 | 8 8 Final Carried 7 | 7 7 Class Distribution -------------------- 100% | Mutant Dominant Class ---------------- Mutant | -10/Materials Resources | -11 -10 ----------- Run | Yrd Mat Matter Collected 206 | 206 . Remotely . | . . Salvage Created 113 | . 113 Parts 6 | . 6 Haulers Intercepted . | . . Recyclers Shooed . | . . Parts Field Recycled . | . . Retrieved Matter . | . . Parts Self-Destructed . | . . Prevented . | . . Kills | -11 -10 ------- Run | Yrd Mat Combat Hostiles Destroyed 3 | . 3 Guns 3 | . 3 Classes Destroyed 1 | . 1 Grunt 3 | . 3 Best Kill Streak 3 | . 3 Combat Bots Only 3 | . 3 Max Kills in Single Turn 1 | . 1 Gunslinging . | . . Exploded . | . . Melee . | . . Uniques/NPCs Destroyed . | . . Combat | -11 -10 -------- Run | Yrd Mat Hostile Shots Fired 81 | . 81 Missed 22 | . 22 Damage Taken 758 | . 758 Core 258 | . 258 Absorbed by Shields . | . . Core Remaining (%) 100 | 100 . Volleys Fired 11 | . 11 Largest 2 | . 2 Hottest 40 | . 40 Shots Fired 19 | . 19 Gun 19 | . 19 Cannon . | . . Launcher . | . . Special . | . . Kinetic 19 | . 19 Thermal . | . . Explosive . | . . Electromagnetic . | . . Robot Hit Streak 6 | . 6 Robot Miss Streak 3 | . 3 Penetration Max . | . . Secondary Targets 1 | . 1 Max Gunslinging Chain 1 | . 1 Shots Hit Robots 12 | . 12 Core Hits 5 | . 5 Critical Kills . | . . Critical Parts Destroyed . | . . Critical Strikes . | . . Melee Attacks . | . . Impact . | . . Slashing . | . . Piercing . | . . Sneak Attacks . | . . Combat Hostiles . | . . Follow-up Attacks . | . . Damage Inflicted 115 | . 115 Guns 115 | . 115 Cannons . | . . Explosions . | . . Melee . | . . Ramming . | . . Kinetic 115 | . 115 Thermal . | . . Explosive . | . . Electromagnetic . | . . Impact . | . . Slashing . | . . Piercing . | . . Highest Corruption . | . . Average Corruption . | . . Corruption Purged . | . . Corruption Blocked . | . . Overload Shots . | . . Overflow Damage . | . . Projectiles . | . . Explosions . | . . Melee . | . . Knockbacks . | . . Impact . | . . Kinetic . | . . Secondary . | . . Self-Inflicted Damage . | . . Shots . | . . Rammed . | . . Targets Rammed . | . . Kicked . | . . Crushed . | . . Highest Temperature 28 | . 28 Average Temperature 7 | . 7 Received Heat Transfer 420 | . 420 Siege Activations . | . . Robots Corrupted . | . . Combat Hostiles . | . . Parts Fried . | . . Impact Corruptions . | . . Robots Melted . | . . Combat Hostiles . | . . Parts Melted . | . . Heat Transferred . | . . Parts Sabotaged . | . . Parts Stolen . | . . Parts Stripped . | . . Power Chain Reactions . | . . Alert | -11 -10 ------- Run | Yrd Mat Peak Influence 61 | . 61 Initial . | . . Average 12 | . 17 Maximum Alert Level . | . . Low Security (%) 100 | 100 100 Level 1 . | . . Level 2 . | . . Level 3 . | . . Level 4 . | . . Level 5 . | . . High Security . | . . Max Security . | . . Squads Dispatched 5 | . 5 Investigation 4 | . 4 Extermination . | . . Reinforcement 1 | . 1 Assault . | . . Garrison . | . . Intercept . | . . Searches Triggered . | . . Construction Impeded . | . . Haulers Reinforced . | . . Active Scanning Responses . | . . Cargo Convoy Interrupts . | . . Stealth | -11 -10 --------- Run | Yrd Mat Distress Signals . | . . Communications Jammed . | . . Distress Signals . | . . Times Spotted 13 | . 13 Peak Tracking Total 12 | . 12 Tactical Retreats . | . . Traps | -11 -10 ------- Run | Yrd Mat Traps Triggered . | . . Indirectly . | . . Trap Hack Attempts . | . . Triggered . | . . Disarmed . | . . Reprogrammed . | . . Reused . | . . Traps Extracted . | . . Installed . | . . Triggered . | . . Machines | -11 -10 ---------- Run | Yrd Mat Machines Disabled . | . . Max in Single Turn . | . . Machines Repaired . | . . Machines Dismantled . | . . Machines Sabotaged . | . . Overloaded Fab Kills . | . . Hacking | -11 -10 --------- Run | Yrd Mat Machines Accessed 5 | . 5 Terminals 5 | . 5 Fabricators . | . . Repair Stations . | . . Recycling Units . | . . Scanalyzers . | . . Garrison Access . | . . Total Hacks 14 | . 14 Successful 5 | . 5 Failed 9 | . 9 Catastrophic 3 | . 3 Database Lockouts . | . . Manual 11 | . 11 Terminals 14 | . 14 Fabricators . | . . Repair Stations . | . . Recycling Units . | . . Scanalyzers . | . . Garrison Access . | . . Terminal Hacks 3 | . 3 Branch Access Points 1 | . 1 Locate Traps 1 | . 1 Zone Layout 1 | . 1 Fabricator Hacks . | . . Repair Station Hacks . | . . Recycling Unit Hacks . | . . Scanalyzer . | . . Garrison Access Hacks . | . . Unauthorized Hacks 2 | . 2 Terminals 2 | . 2 Botnet 2 | . 2 Fabricators . | . . Repair Stations . | . . Recycling Units . | . . Scanalyzers . | . . Garrison Access . | . . Data Cores Recovered . | . . Used . | . . Hacking Detections 5 | . 5 Full Trace Events 5 | . 5 Feedback Events . | . . Feedback Blocked . | . . Robot Schematics Acquired . | . . Robots Built . | . . Authchips . | . . Time . | . . Total Robot Build Rating . | . . Part Schematics Acquired . | . . Parts Built . | . . Authchips . | . . Time . | . . Total Part Build Rating . | . . Parts Repaired . | . . Time . | . . Parts Recycled . | . . Recycled Matter . | . . Retrieved Matter . | . . Retrieved Components . | . . Parts Scanalyzed . | . . Part Schematics Acquired . | . . Parts Damaged . | . . Bothacking | -11 -10 ------------ Run | Yrd Mat Used RIF Installer . | . . Robots Hacked . | . . Non-combat . | . . Combat . | . . Robot Hacks Applied . | . . Relay Couplers Released . | . . Fabnet Peak Effective % . | . . Robots Rewired . | . . Allies Hacked . | . . Hacks Repelled . | . . Allies | -11 -10 -------- Run | Yrd Mat Total Allies . | . . Largest Group . | . . Highest-Rated Group . | . . Highest-Rated Ally . | . . Total Orders . | . . Ally Attacks . | . . Total Damage . | . . Kills . | . . Allies Corrupted . | . . Allies Melted . | . . Intel | -11 -10 ------- Run | Yrd Mat Robot Analysis Total . | . . Derelict Logs Recovered . | . . Drone Launches . | . . Drone Recoveries . | . . Exploration | -11 -10 ------------- Run | Yrd Mat Turns Passed 239 | 67 172 Spaces Moved 163 | 50 113 Core 15 | 15 . Treads . | . . Legs 133 | 35 98 Wheels 15 | . 15 Hover . | . . Flight . | . . Fastest Speed 50 | 50 95 Average Speed 112 | 101 117 Slowest Speed 190 | 120 190 Overloaded Moves . | . . Propulsion Burnouts . | . . Robots Hopped . | . . Cave-ins Triggered . | . . Exploration Rate (%) 20 | 3 38 Regions Visited 1 Branch Regions . Pre-discovered Areas . | . . Known Exits Taken . | . . Unknown Exits Taken 1 | 1 . Scrap Searched . | . . Spaces Dug . | . . Terrain Destroyed . | . . Melee . | . . Projectile . | . . AOE . | . . Terrain Rammed . | . . Walls Destroyed . | . . Machines Disabled . | . . Actions | -11 -10 --------- Run | Yrd Mat Total 203 | 66 137 Wait . | . . Move 162 | 49 113 Hop . | . . Pick Up 16 | 12 4 Fast Attach . | . . Attach 11 | 5 6 Detach 2 | . 2 Swap . | . . Drop 1 | . 1 Fire 11 | . 11 Melee . | . . Ram . | . . Kick . | . . Crush . | . . Escape Stasis . | . . Rewire . | . . Trap . | . . Miscellaneous . | . . Route ------- -11/Scrapyard -10/Materials (discovered 2 exits: [*Mat] / Min) History --------- Turn | Location | Event 6 | -11/Scrapyard | Discovered new exit (range 15) 68 | -11/Scrapyard | Entered Materials 167 | -10/Materials | Discovered new exit (range 15) 209 | -10/Materials | Identified exit to Mines 230 | -10/Materials | Core integrity fell below 50% 238 | -10/Materials | Core integrity fell below 20% 240 | -10/Materials | Destroyed by G-34 Mercenary with Small Laser Last Messages --------------- (62,13) Mines Map updated. 00209_ ALERT: Suspicious activity at Terminal M003. Dispatching Investigation squad. 00209_ Dropped Structural Scanner. 00218_ Ion Engine destroyed. 00218_ G-34 Mercenary destroyed. 00219_ K-01 Serf collects debris. 00232_ G-34 Mercenary destroyed. 00232_ Switching to secondary target: G-34 Mercenary. 00232_ K-01 Serf collects debris. 00233_ Neutrino Reactor explodes. 00233_ K-01 Serf destroyed. 00233_ G-34 Mercenary destroyed. 00233_ Door malfunctions. 00233_ Terminal disabled. 00234_ Assault Rifle destroyed. 00235_ Aluminum Leg destroyed. 00238_ Critical hit (Burn: +37). 00239_ G-34 Mercenary destroyed. Map ----- +----------------------------------------------------+ | | | | | | | | | | | | | | | | | | | | | | | | | | | | | | | | | | | | | | | | | ??????################?????????????????? | | ??????? ##?????????????????? | | ??????? """ # ?????????????????? | | ?????## """ ! # ?????????????????? | | ?????## """g = # ???????????????### | | ?????## g %*@ % # ???????????????### | | ?????## g g%*= *[=!# ???????????????# | | ?????###/########g### ########### < | | ????? # ###### ?%! ###+############## | | ?????? # ? # = # | | ?????? + ? # # | | ?????? #? # # | | ?????? ####+### ###+###? / !! # | | ?????? ##! ## ### ## # !* # | | ???????## ??? ## ###?? ## # !* # | | ???????## ????## ##??? ## ######## | | ???????## ????##? ##??? # ####### | | ??????????????## ##??? # T | | ??????????????## ##??? + "" | | ??????????????## ##??? # | | ??????????????## ##???## ####### | | ??????????????## ##???############## | | ??????????????## ?????############## | | ??????????????## ?????????########## | | ??????????????## ?????????###!!!!### | | ????????????????????????????##! !## | | ????????????????????????###### ## | | ????????????????????????###### # | | ??????????????????????? | | ??????????????????????? T | +----------------------------------------------------+ Best States ------------- Heat Dissipation 25 Energy Generation 10 Energy Capacity 250 Matter Stores 246 Matter Capacity 300 Sight Range 16 Robot Scan Range 14 Terrain Scan Density 10 Evasion (%) 55 Item Schematics ----------------- None Robot Schematics ------------------ None Fabricated ------------ Nothing Alien Tech Used ----------------- None Achievements -------------- None Challenges ------------ None Game ------ Seed ColdFrostFlightbrick Manual? 0 Play Time 00:07:59 Cumulative 16.3 hours Start 2024.06.30 @ 17:00:17 End 2024.07.02 @ 14:47:44 Sessions 3 Manual Loads 0 Difficulty Rogue Special Mode None Game No. 25 Rogue 25 Adventurer 0 Explorer 0 Win Type - Total 0 Types 0/0/0/0/0/0/0/0/0 Lore% 8 Gallery% 17 Achievement% 14 Wizard Run 0 Options --------- Layout 0 ASCII 1 Keyboard 0 Movement Numpad Keybinds 0 Fullscreen 2 Font 18/TerminusBold Map View 38x25 Zoom Use 52% Tactical HUD 1 Map Filters NONE Filters NONE Steam 1 RUN: 9581c80f-9a5f-440b-8abf-91fd13184890